Cogmind - Beta 14 @@@ ROGUE MODE // 2024.08.31 @ 21:02:31 Player: Unit6544 Result: Destroyed by Y-45 Defender with Beam Rifle Performance ------------- Evolutions (1) 500 Regions Visited (3) 600 Robots Destroyed (60) 300 Value Destroyed (1810) 1810 Prototype IDs (4) 80 Alien Tech Used (0) 0 Bonus (66) 66 TOTAL SCORE: 3356 Bonus ------- High Alert Combat Kills 66 Cogmind --------- Core Integrity 0/400 Matter 300/300 Energy 233/265 System Corruption 8% Temperature Cool (9) Movement Treading (160) Location -9/Storage Parts ------- > --- POWER (1) -------- Improved Ion Engine > --- PROPULSION (2) --- Light Treads Light Treads > --- UTILITY (4) ------ Heat Sink Sensor Array Power Shielding Utility Shielding > --- WEAPON (2) ------- Beam Rifle Beam Rifle > --- INVENTORY (5) ---- Light Treads Flight Unit EM Shotgun Assault Rifle Peak State ------------ > --- POWER ------------ Light Ion Engine > --- PROPULSION ------- Airjet Airjet > --- UTILITY ---------- Sensor Array Reaction Control System Reaction Control System > --- WEAPON ----------- Minigun Minigun > --- INVENTORY -------- Ion Engine Airjet [Rating: 20] Favorites ----------- Power Light Ion Engine Engine Light Ion Engine Propulsion Light Treads Treads Light Treads Leg Aluminum Leg Hover Unit Airjet Flight Unit Flight Unit Utility Hardened Light Armor Plating Device Sensor Array Storage Small Storage Unit Processor Targeting Computer Protection Hardened Light Armor Plating Weapon Minigun Energy Gun Beam Rifle Ballistic Gun Minigun Build | -11 -10 -9 -9 ------- Run | Yrd Mat Mat Sto Slots Evolved 2 | . . 2 . Power . | . . . . Propulsion . | . . . . Utility 2 | . . 2 . Weapon . | . . . . Parts Attached 57 | 6 8 27 16 Power 7 | 1 1 4 1 Engine 7 | 1 1 4 1 Core . | . . . . Reactor . | . . . . Propulsion 17 | 2 3 7 5 Treads 6 | . . 3 3 Leg 4 | 2 . . 2 Wheel . | . . . . Hover 3 | . . 3 . Flight 4 | . 3 1 . Utility 21 | 1 3 11 6 Device 9 | . 3 3 3 Storage 1 | 1 . . . Processor 2 | . . 2 . Hackware . | . . . . Protection 9 | . . 6 3 Artifact . | . . . . Weapon 12 | 2 1 5 4 Energy Gun 3 | . . . 3 Energy Cannon . | . . . . Ballistic Gun 9 | 2 1 5 1 Ballistic Cannon . | . . . . Launcher . | . . . . Special Weapon . | . . . . Impact Weapon . | . . . . Slashing Weapon . | . . . . Piercing Weapon . | . . . . Special Melee Weapon . | . . . . Unidentified Prototypes . | . . . . Parts Lost 21 | . 4 6 11 Power 4 | . 1 2 1 Propulsion 6 | . 2 1 3 Utility 8 | . 1 3 4 Weapon 3 | . . . 3 Highest Loss Streak 9 | . 4 3 9 To Critical Strikes 1 | . . . 1 Average Slot Usage (%) 92 | . 93 93 90 Engine 10 | . 13 9 10 Treads 11 | . . 11 15 Leg 5 | . 17 . 4 Hover 3 | . . 9 . Flight 1 | . 9 . . Device 9 | . 10 8 9 Storage 2 | . 14 . . Processor 3 | . . 9 . Protection 21 | . . 21 30 Energy Gun 3 | . . . 8 Ballistic Gun 17 | . 28 20 11 Peak Build Rating 20 | 6 7 20 15 Average Rating 12 | 4 6 15 12 On Entrance 7 | . 6 7 15 Naked Turns 2 | . . . 2 Heaviest Build 27 | 11 12 25 27 Greatest Support 40 | 20 20 40 40 Greatest Overweight (x) 2 | 1 2 1 1 Average Overweight (x) . | . . . . Largest Inventory Capacity 8 | 8 8 8 5 Average Capacity 5 | 7 8 5 5 Most Carried 6 | 5 6 5 5 Average Carried 2 | . 2 2 2 Final Capacity 8 | 8 8 5 5 Final Carried 4 | . 4 4 4 Class Distribution -------------------- 65% | Scavenger-Mutant 34% | Mutant Dominant Class ---------------- Mutant | -10/Materials Scavenger-Mutant | -9/Materials Scavenger-Mutant | -9/Storage Resources | -11 -10 -9 -9 ----------- Run | Yrd Mat Mat Sto Matter Collected 1887 | 164 281 896 546 Remotely . | . . . . Salvage Created 2278 | . 606 919 753 Parts 131 | . 29 57 45 Haulers Intercepted . | . . . . Recyclers Shooed 2 | . 2 . . Parts Field Recycled . | . . . . Retrieved Matter . | . . . . Parts Self-Destructed . | . . . . Prevented . | . . . . Kills | -11 -10 -9 -9 ------- Run | Yrd Mat Mat Sto Combat Hostiles Destroyed 51 | . 13 21 17 Guns 51 | . 13 21 17 Classes Destroyed 8 | . 4 4 . Worker 1 | . . 1 . Recycler 2 | . 2 . . Watcher 6 | . 2 2 2 Swarmer 9 | . 6 3 . Grunt 28 | . 7 10 11 Brawler 2 | . . 1 1 Duelist 2 | . . 2 . Sentry 10 | . . 5 5 Best Kill Streak 9 | . 9 7 4 Combat Bots Only 8 | . 8 5 4 Max Kills in Single Turn 2 | . 1 2 1 Gunslinging . | . . . . Exploded . | . . . . Melee . | . . . . Uniques/NPCs Destroyed . | . . . . Combat | -11 -10 -9 -9 -------- Run | Yrd Mat Mat Sto Hostile Shots Fired 282 | . 71 95 116 Missed 74 | . 17 31 26 Damage Taken 2637 | . 510 888 1239 Core 513 | . 113 91 309 Absorbed by Shields . | . . . . Redirected to Shielding 53 | . . 20 33 Regen/Repaired (Parts) 9 | . . 9 . Core Remaining (%) 77 | 100 54 . . Volleys Fired 213 | . 46 89 78 Largest 2 | . 2 2 2 Hottest 112 | . 40 50 112 Shots Fired 379 | . 92 157 130 Gun 379 | . 92 157 130 Cannon . | . . . . Launcher . | . . . . Special . | . . . . Kinetic 347 | . 92 157 98 Thermal 32 | . . . 32 Explosive . | . . . . Electromagnetic . | . . . . Robot Hit Streak 12 | . 8 12 9 Robot Miss Streak 6 | . 6 5 4 Penetration Max . | . . . . Secondary Targets 8 | . 3 2 3 Max Gunslinging Chain 1 | . 1 1 1 Shots Hit Robots 228 | . 51 95 82 Core Hits 93 | . 31 34 28 Critical Kills 1 | . 1 . . Critical Parts Destroyed . | . . . . Critical Strikes 4 | . 1 . 3 Burn 2 | . . . 2 Destroy 2 | . 1 . 1 Melee Attacks . | . . . . Impact . | . . . . Slashing . | . . . . Piercing . | . . . . Sneak Attacks . | . . . . Combat Hostiles . | . . . . Follow-up Attacks . | . . . . Damage Inflicted 3558 | . 549 1660 1349 Guns 3539 | . 549 1653 1337 Cannons . | . . . . Explosions . | . . . . Melee . | . . . . Ramming 19 | . . 7 12 Kinetic 3274 | . 549 1653 1072 Thermal 265 | . . . 265 Explosive . | . . . . Electromagnetic . | . . . . Impact . | . . . . Slashing . | . . . . Piercing . | . . . . Highest Corruption 8 | . . 5 8 Average Corruption 6 | . . 5 7 Corruption Purged . | . . . . Corruption Blocked . | . . . . Effects 51 | . . 7 44 Message Errors 12 | . . 1 11 Matter Fused 7 | . . . 7 Heat Flow Errors 7 | . . 1 6 Energy Discharges 5 | . . . 5 Parts Rejected 2 | . . . 2 Parts Fused 1 | . . 1 . Data Loss (minor) 5 | . . . 5 Data Loss (major) 4 | . . 1 3 Misfires 4 | . . 2 2 Alerts 1 | . . . 1 Weapon Failures 3 | . . 1 2 Overload Shots . | . . . . Overflow Damage . | . . . . Projectiles . | . . . . Explosions . | . . . . Melee . | . . . . Knockbacks . | . . . . Impact . | . . . . Kinetic . | . . . . Secondary . | . . . . Self-Inflicted Damage . | . . . . Shots . | . . . . Rammed 5 | . . 1 4 Targets Rammed 6 | . . 1 5 Kicked 1 | . . . 1 Crushed . | . . . . Highest Temperature 271 | . 20 180 271 Average Temperature 65 | . 7 34 91 Received Heat Transfer 927 | . 168 258 501 Effects 2 | . . . 2 Energy Bleed 2 | . . . 2 Siege Activations . | . . . . Robots Corrupted . | . . . . Combat Hostiles . | . . . . Parts Fried . | . . . . Impact Corruptions . | . . . . Robots Melted . | . . . . Combat Hostiles . | . . . . Parts Melted 1 | . . . 1 Heat Transferred 815 | . . . 815 Parts Sabotaged . | . . . . Parts Stolen . | . . . . Parts Stripped . | . . . . Power Chain Reactions . | . . . . Alert | -11 -10 -9 -9 ------- Run | Yrd Mat Mat Sto Peak Influence 528 | . 391 528 329 Initial 184 | . . 16 184 Average 231 | . 185 281 220 Maximum Alert Level 2 | . 1 2 1 Low Security (%) 41 | 100 49 32 43 Level 1 49 | . 50 43 56 Level 2 8 | . . 23 . Level 3 . | . . . . Level 4 . | . . . . Level 5 . | . . . . High Security . | . . . . Max Security . | . . . . Squads Dispatched 10 | . 3 3 4 Investigation 4 | . 1 1 2 Extermination . | . . . . Reinforcement 6 | . 2 2 2 Assault . | . . . . Garrison . | . . . . Intercept . | . . . . Searches Triggered . | . . . . Construction Impeded . | . . . . Haulers Reinforced . | . . . . Active Scanning Responses . | . . . . Cargo Convoy Interrupts . | . . . . Stealth | -11 -10 -9 -9 --------- Run | Yrd Mat Mat Sto Distress Signals 7 | . 3 4 . Communications Jammed . | . . . . Distress Signals . | . . . . Times Spotted 81 | . 22 35 24 Peak Tracking Total 10 | . 10 7 5 Tactical Retreats 5 | . 2 2 1 Traps | -11 -10 -9 -9 ------- Run | Yrd Mat Mat Sto Traps Triggered 1 | . 1 . . Indirectly . | . . . . Trap Hack Attempts . | . . . . Triggered . | . . . . Disarmed . | . . . . Reprogrammed . | . . . . Reused . | . . . . Traps Extracted . | . . . . Installed . | . . . . Triggered . | . . . . Machines | -11 -10 -9 -9 ---------- Run | Yrd Mat Mat Sto Machines Disabled 3 | . . 1 2 Max in Single Turn 1 | . . 1 1 Machines Repaired . | . . . . Machines Dismantled . | . . . . Machines Sabotaged . | . . . . Overloaded Fab Kills . | . . . . Hacking | -11 -10 -9 -9 --------- Run | Yrd Mat Mat Sto Machines Accessed 16 | . 3 7 6 Terminals 13 | . 3 5 5 Fabricators . | . . . . Repair Stations 1 | . . 1 . Recycling Units 1 | . . . 1 Scanalyzers 1 | . . 1 . Garrison Access . | . . . . Total Hacks 44 | . 9 18 17 Successful 23 | . 5 10 8 Failed 21 | . 4 8 9 Catastrophic 2 | . 1 1 . Database Lockouts . | . . . . Manual 1 | . 1 . . Terminals 34 | . 9 11 14 Fabricators . | . . . . Repair Stations 5 | . . 5 . Recycling Units 3 | . . . 3 Scanalyzers 2 | . . 2 . Garrison Access . | . . . . Terminal Hacks 16 | . 5 5 6 Prototype ID Bank 2 | . . . 2 Branch Access Points 1 | . 1 . . Emergency Access Points 1 | . . 1 . Unreport Threat 1 | . 1 . . Locate Traps 2 | . . . 2 Transport Status 3 | . 1 2 . Hauler Manifests 2 | . . 1 1 Zone Layout 4 | . 2 1 1 Fabricator Hacks . | . . . . Repair Station Hacks 4 | . . 4 . Scan Component 2 | . . 2 . Repair 2 | . . 2 . Recycling Unit Hacks 2 | . . . 2 Recycle Component 1 | . . . 1 Process 1 | . . . 1 Scanalyzer 1 | . . 1 . Insert Component 1 | . . 1 . Garrison Access Hacks . | . . . . Unauthorized Hacks . | . . . . Terminals . | . . . . Fabricators . | . . . . Repair Stations . | . . . . Recycling Units . | . . . . Scanalyzers . | . . . . Garrison Access . | . . . . Data Cores Recovered . | . . . . Used . | . . . . Hacking Detections 11 | . 3 3 5 Full Trace Events 5 | . 1 1 3 Feedback Events . | . . . . Feedback Blocked . | . . . . Robot Schematics Acquired . | . . . . Robots Built . | . . . . Authchips . | . . . . Time . | . . . . Total Robot Build Rating . | . . . . Part Schematics Acquired . | . . . . Parts Built . | . . . . Authchips . | . . . . Time . | . . . . Total Part Build Rating . | . . . . Parts Repaired 2 | . . 2 . Time 64 | . . 64 . Parts Recycled 1 | . . . 1 Recycled Matter 68 | . . . 68 Retrieved Matter . | . . . . Retrieved Components . | . . . . Parts Scanalyzed 1 | . . 1 . Part Schematics Acquired . | . . . . Parts Damaged . | . . . . Bothacking | -11 -10 -9 -9 ------------ Run | Yrd Mat Mat Sto Used RIF Installer . | . . . . Robots Hacked . | . . . . Non-combat . | . . . . Combat . | . . . . Robot Hacks Applied . | . . . . Relay Couplers Released . | . . . . Fabnet Peak Effective % . | . . . . Robots Rewired . | . . . . Allies Hacked . | . . . . Hacks Repelled . | . . . . Allies | -11 -10 -9 -9 -------- Run | Yrd Mat Mat Sto Total Allies . | . . . . Largest Group . | . . . . Highest-Rated Group . | . . . . Highest-Rated Ally . | . . . . Total Orders . | . . . . Ally Attacks . | . . . . Total Damage . | . . . . Kills . | . . . . Allies Corrupted . | . . . . Allies Melted . | . . . . Intel | -11 -10 -9 -9 ------- Run | Yrd Mat Mat Sto Robot Analysis Total . | . . . . Derelict Logs Recovered . | . . . . Drone Launches . | . . . . Drone Recoveries . | . . . . Exploration | -11 -10 -9 -9 ------------- Run | Yrd Mat Mat Sto Turns Passed 2532 | 45 457 868 1162 Spaces Moved 1505 | 31 254 663 557 Core 20 | 8 4 . 8 Treads 660 | . . 203 457 Legs 265 | 23 150 . 92 Wheels . | . . . . Hover 441 | . . 441 . Flight 119 | . 100 19 . Fastest Speed 37 | 50 117 37 50 Average Speed 122 | 108 120 88 166 Slowest Speed 240 | 190 200 160 240 Overloaded Moves . | . . . . Propulsion Burnouts . | . . . . Robots Hopped . | . . . . Cave-ins Triggered . | . . . . Exploration Rate (%) 42 | 3 47 59 61 Regions Visited 3 Branch Regions 1 Pre-discovered Areas . | . . . . Known Exits Taken 1 | . . 1 . Unknown Exits Taken 2 | 1 1 . . Scrap Searched . | . . . . Spaces Dug . | . . . . Terrain Destroyed . | . . . . Melee . | . . . . Projectile . | . . . . AOE . | . . . . Terrain Rammed . | . . . . Walls Destroyed . | . . . . Machines Disabled . | . . . . Actions | -11 -10 -9 -9 --------- Run | Yrd Mat Mat Sto Total 1874 | 42 326 828 678 Wait . | . . . . Move 1502 | 30 253 662 557 Hop . | . . . . Pick Up 68 | 6 15 29 18 Fast Attach . | . . . . Attach 51 | 6 8 21 16 Detach 2 | . . 2 . Swap 6 | . . 6 . Drop 26 | . 4 18 4 Fire 213 | . 46 89 78 Melee . | . . . . Ram . | . . . . Kick 1 | . . . 1 Crush 5 | . . 1 4 Escape Stasis . | . . . . Rewire . | . . . . Trap . | . . . . Miscellaneous . | . . . . Route ------- -11/Scrapyard -10/Materials (discovered 3 exits: *Mat x2 / Min) -9/Materials (discovered 4 exits: [*Mat] / [*Min] / *Sto x2) -9/Storage History --------- Turn | Location | Event 10 | -11/Scrapyard | Discovered new exit (range 15) 46 | -11/Scrapyard | Entered Materials 160 | -10/Materials | Identified exit to Mines 247 | -10/Materials | Destroyed 8 combat bots 318 | -10/Materials | Build established: Mutant 351 | -10/Materials | Discovered new exit (range 13) 364 | -10/Materials | Lost 4 parts (1p2n1u) 496 | -10/Materials | Discovered new exit (range 3) 503 | -10/Materials | Entered another Materials area 503 | -9/Materials | Evolved 2 slots: Utility x2 686 | -9/Materials | Repaired Sensor Array 693 | -9/Materials | Discovered new exit (range 13) 711 | -9/Materials | Discovered new exit (range 13) 724 | -9/Materials | Repaired Airjet? 734 | -9/Materials | Identified exit to Storage 950 | -9/Materials | Lost 3 parts (1p1n1u) 1041 | -9/Materials | Discovered new exit (range 16) 1218 | -9/Materials | Build established: Scavenger-Mutant 1354 | -9/Materials | Discovered exit to Storage (range 4) 1371 | -9/Materials | Entered Storage 1973 | -9/Storage | Core integrity fell below 50% 2018 | -9/Storage | Lost 9 parts (1p2n3u3w) 2177 | -9/Storage | Core integrity fell below 20% 2533 | -9/Storage | Destroyed by Y-45 Defender with Beam Rifle Last Messages --------------- 2x Adv. Beam Cannon 2x Imp. EM Shotgun A-02 Transporter 2x Spread Laser 2x Wheel 2x Terrain Scan Processor ALERT: Suspicious activity at Terminal S005. Dispatching Investigation squad. System corrupted: Matter fused (-6). System corrupted: Heat flow error (+218). System corrupted: Lgt. Treads rejected. G-34 Mercenary destroyed. G-34 Mercenary suffers critical hit (Burn). Heat Sink melted. G-34 Mercenary destroyed. Acquired Lgt. Treads. Acquired 16 matter. XITXLILS8=P#QQPTGXH4HBBSO44,B K-01 Serf collects debris. System corrupted: Energy discharge (-60). Map ----- +----------------------------------------------------+ | "??"" #?????????????# """"" ## ## #?????? | | "???" #?????????????# " " ###"""#### ###???? | | """"" #?????????????# """"" ## T### ""#???? | | *[ #?????????????# ## #### Y"#???? | | #+######################+#########+##### ""#???? | | % ^ ###???? | | ^ #?????? | | ^ #?????? | | ##T###########+#############" ## ########+#####??? | | ?###????#=%*= #?????#"T## #??# #??? | | ???????##[""" === #?????##### #??# """ #??? | | ???????# """ === #?????????# #??# """" " #??? | | ???????## """ === #?????????#=#??# " "" " #??? | | ????????# !%[ ###########?##?# " "" " #??? | | ????????#######+###### # ==### " """" #??? | | ?????????## * ## """"" + T + """ #??? | | ?????????# T """ ## " " # ### #??? | | ?????????## """ ## """"" #####?###########??? | | ??????????# """ ## """"" #??????????????????? | | ??????????# """ ## " " #??????????????????? | | ##????????# """ ## """"" #??????????????????? | | #????????# ## #??????????????????? | | #????????# ## #????????######????? | | #???????######+#########+############## ????? | | #???????# k % ????? | | #???????# @ ??????? | | #???????# ??????? | | ##???????################+#########+#### ???????? | | ?????????????????????????????????????????????????? | | ?????????????????????????????????????????????????? | | ?????????????????????????????????????????????????? | | ?????????????????????????????????????????????????? | | ?????????????????????????????????????????????????? | | ?????????????????????????????????????????????????? | | ?????????????????????????????????????????????????? | | ######???????????????????????????????????????????? | | #???????????????????????????????????????????? | | =!#???????????????????????????????????????????? | | =!#???????????????????????????????????????????? | | =! #???????????????????????????????????????????? | | #???????????????????????????????????????????? | | ^ #???????????????????????????????????????????? | | #+####???????????????????????????????????????????? | | ###### #??????????????????????????????????? | | #??????????????????????????????????? | | ###### #??????????????????????????????????? | | ####?????????????????????????????????????????????? | | ?????????????????????????????????????????????????? | | ?????????????????????????????????????????????????? | | ?????????????????????????????????????????????????? | +----------------------------------------------------+ Best States ------------- Heat Dissipation 38 Energy Generation 12 Energy Capacity 265 Matter Stores 300 Matter Capacity 300 Sight Range 16 Robot Scan Range 14 Terrain Scan Density 10 Armor Coverage 600 Power Shielding 33 Propulsion Shielding 33 Utility Shielding 33 Evasion (%) 62 Targeting Accuracy 5 Recoil Reduction 2 Item Schematics ----------------- None Robot Schematics ------------------ None Fabricated ------------ Nothing Alien Tech Used ----------------- None Achievements -------------- None Challenges ------------ None Game ------ Seed TechFortressCasing Manual? 0 Play Time 00:41:58 Cumulative 5.0 hours Start 2024.08.31 @ 20:21:35 End 2024.08.31 @ 21:02:31 Sessions 1 Manual Loads 0 Difficulty Rogue Special Mode None Game No. 14 Rogue 14 Adventurer 0 Explorer 0 Win Type - Total 0 Types 0/0/0/0/0/0/0/0/0 Lore% 2 Gallery% 9 Achievement% 10 Wizard Run 0 Options --------- Layout 1 ASCII 0 Keyboard 0 Movement Mouse Keybinds 0 Fullscreen 1 Font 24/Smallcaps Map View 50x40 Zoom Use 0% Tactical HUD 0 Map Filters NONE Filters NONE Steam 1 RUN: 97abd58a-1685-48c7-a95b-e01a8d04f91d